{"text_format":"1","workbook":"xlsx","n_sheets":2,"sheets":["LISTING EQ","ECLAIRAGE INTRUSION RJ45"],"not_rendered":{"charts":0,"images":1,"macros":1,"external_links":0,"defined_names":4,"comments":0,"pivot_tables":0},"unopened":[],"bounds":{"document_bytes":16777216,"sheet_cells":100000,"rows_first":2000,"rows_last":500,"rows_between":2000,"halvings":0,"cell_chars":16384,"cell_head_chars":4096},"cells_cut":0,"cells_raw":0,"read":"whole","date_system":"1900"}

{"sheet":"LISTING EQ","index":0,"n_rows":30,"n_cols":19,"rows_kept":30,"cut":false,"hidden":false,"merged":[[2,0,2,5],[2,15,2,18],[2,6,2,13]]}
[]
[]
["Identité",null,null,null,null,null,"BP",null,null,null,null,null,null,null,null,"Raccord. Equip."]
["SECTEUR","LOCALISATION","NIVEAU","ECLAIR. (lux)","LOT","EQUIPEMENT","Nb","Pu (kW)","Fu","Fs","Fu*Fs","Cosφ","P tot (kW)","P abs (kW)","ORIGINE","Direct","PC mono 10/16A","PC tétra","Commentaires"]
["LOCAL SPK","Local Sprinklage","RDC",null,"CVC","Aérotherme",1,10,1,1,{"$f":"ListingEQ[[#This Row],[Fu]]*ListingEQ[[#This Row],[Fs]]","v":1},1,{"$f":"G5*ListingEQ[[#This Row],[Pu (kW)]]*ListingEQ[[#This Row],[Cosφ]]","v":10},{"$f":"ListingEQ[[#This Row],[P tot (kW)]]*ListingEQ[[#This Row],[Fu*Fs]]","v":10},0,"X",null,null,0]
["LOCAL SPK","Local Sprinklage","RDC",null,"CVC","Epingle hors gel réservoir pompier",1,40,1,1,{"$f":"ListingEQ[[#This Row],[Fu]]*ListingEQ[[#This Row],[Fs]]","v":1},1,{"$f":"G6*ListingEQ[[#This Row],[Pu (kW)]]*ListingEQ[[#This Row],[Cosφ]]","v":40},{"$f":"ListingEQ[[#This Row],[P tot (kW)]]*ListingEQ[[#This Row],[Fu*Fs]]","v":40},null,null,3]
["LOCAL SPK","Local Sprinklage","RDC",null,"CVC","Epingle hors gel réservoir SPK",1,10,1,1,{"$f":"ListingEQ[[#This Row],[Fu]]*ListingEQ[[#This Row],[Fs]]","v":1},1,{"$f":"G7*ListingEQ[[#This Row],[Pu (kW)]]*ListingEQ[[#This Row],[Cosφ]]","v":10},{"$f":"ListingEQ[[#This Row],[P tot (kW)]]*ListingEQ[[#This Row],[Fu*Fs]]","v":10}]
["LOCAUX TECHNIQUES","SR04 ","R+2",null,"ELEC BATIMENT","Alimentation 48Vcc",1,0,1,1,{"$f":"ListingEQ[[#This Row],[Fu]]*ListingEQ[[#This Row],[Fs]]","v":1},1,{"$f":"G8*ListingEQ[[#This Row],[Pu (kW)]]*ListingEQ[[#This Row],[Cosφ]]","v":0},{"$f":"ListingEQ[[#This Row],[P tot (kW)]]*ListingEQ[[#This Row],[Fu*Fs]]","v":0},0,null,null,null,0]
["LOCAUX TECHNIQUES","SR04 ","R+2",null,"PROCESS","Ballon Charot",1,0,1,1,{"$f":"ListingEQ[[#This Row],[Fu]]*ListingEQ[[#This Row],[Fs]]","v":1},1,{"$f":"G9*ListingEQ[[#This Row],[Pu (kW)]]*ListingEQ[[#This Row],[Cosφ]]","v":0},{"$f":"ListingEQ[[#This Row],[P tot (kW)]]*ListingEQ[[#This Row],[Fu*Fs]]","v":0},0,null,null,null,0]
["EXTERIEUR","Equipements externes","EXTERIEUR",null,"ELEC BATIMENT","Barrières levantes entrée/sortie VL",2,0.5,1,1,{"$f":"ListingEQ[[#This Row],[Fu]]*ListingEQ[[#This Row],[Fs]]","v":1},1,{"$f":"G10*ListingEQ[[#This Row],[Pu (kW)]]*ListingEQ[[#This Row],[Cosφ]]","v":1},{"$f":"ListingEQ[[#This Row],[P tot (kW)]]*ListingEQ[[#This Row],[Fu*Fs]]","v":1},"TD SG",null,null,null,0]
["STOCKAGE","STOCKAGE","RDC",null,"ELEC BATIMENT","Blocs secours",2,0,1,1,{"$f":"ListingEQ[[#This Row],[Fu]]*ListingEQ[[#This Row],[Fs]]","v":1},1,{"$f":"G11*ListingEQ[[#This Row],[Pu (kW)]]*ListingEQ[[#This Row],[Cosφ]]","v":0},{"$f":"ListingEQ[[#This Row],[P tot (kW)]]*ListingEQ[[#This Row],[Fu*Fs]]","v":0},0,null,4,null,0]
["STOCKAGE","CANTON ","RDC",null,"ELEC BATIMENT","Blocs secours",2,0,1,1,{"$f":"ListingEQ[[#This Row],[Fu]]*ListingEQ[[#This Row],[Fs]]","v":1},1,{"$f":"G12*ListingEQ[[#This Row],[Pu (kW)]]*ListingEQ[[#This Row],[Cosφ]]","v":0},{"$f":"ListingEQ[[#This Row],[P tot (kW)]]*ListingEQ[[#This Row],[Fu*Fs]]","v":0},0,5,null,null,0]
["LOCAUX TECHNIQUES","Local Transfo","RDC",null,"ELEC BATIMENT","Blocs secours",7,0,1,1,{"$f":"ListingEQ[[#This Row],[Fu]]*ListingEQ[[#This Row],[Fs]]","v":1},1,{"$f":"G13*ListingEQ[[#This Row],[Pu (kW)]]*ListingEQ[[#This Row],[Cosφ]]","v":0},{"$f":"ListingEQ[[#This Row],[P tot (kW)]]*ListingEQ[[#This Row],[Fu*Fs]]","v":0},0,null,null,null,0]
["LOCAUX TECHNIQUES","Local Transfo","RDC",null,"ELEC BATIMENT","Blocs secours",7,0,1,1,{"$f":"ListingEQ[[#This Row],[Fu]]*ListingEQ[[#This Row],[Fs]]","v":1},1,{"$f":"G14*ListingEQ[[#This Row],[Pu (kW)]]*ListingEQ[[#This Row],[Cosφ]]","v":0},{"$f":"ListingEQ[[#This Row],[P tot (kW)]]*ListingEQ[[#This Row],[Fu*Fs]]","v":0},0,null,null,null,0]
["BUREAUX PRODUCTION","Poste d'eau presse","RDC",null,"ECLAIRAGE","Eclairage 1000lm",7,1,1,1,{"$f":"ListingEQ[[#This Row],[Fu]]*ListingEQ[[#This Row],[Fs]]","v":1},1,{"$f":"G15*ListingEQ[[#This Row],[Pu (kW)]]*ListingEQ[[#This Row],[Cosφ]]","v":7},{"$f":"ListingEQ[[#This Row],[P tot (kW)]]*ListingEQ[[#This Row],[Fu*Fs]]","v":7},0,null,null,null,0]
["BUREAUX PRODUCTION","Local eau chaude","RDC",null,"ECLAIRAGE","Eclairage 1000lm",12,0,1,1,{"$f":"ListingEQ[[#This Row],[Fu]]*ListingEQ[[#This Row],[Fs]]","v":1},1,{"$f":"G16*ListingEQ[[#This Row],[Pu (kW)]]*ListingEQ[[#This Row],[Cosφ]]","v":0},{"$f":"ListingEQ[[#This Row],[P tot (kW)]]*ListingEQ[[#This Row],[Fu*Fs]]","v":0},0,null,null,3,0]
["BUREAUX PRODUCTION","Local additifs","RDC",null,"ECLAIRAGE","Eclairage 1000lm",12,0,1,1,{"$f":"ListingEQ[[#This Row],[Fu]]*ListingEQ[[#This Row],[Fs]]","v":1},1,{"$f":"G17*ListingEQ[[#This Row],[Pu (kW)]]*ListingEQ[[#This Row],[Cosφ]]","v":0},{"$f":"ListingEQ[[#This Row],[P tot (kW)]]*ListingEQ[[#This Row],[Fu*Fs]]","v":0},0,null,1,null,0]
["BUREAUX PRODUCTION","Déchiqueteuse","RDC",null,"ECLAIRAGE","Eclairage 1000lm",12,2,1,1,{"$f":"ListingEQ[[#This Row],[Fu]]*ListingEQ[[#This Row],[Fs]]","v":1},1,{"$f":"G19*ListingEQ[[#This Row],[Pu (kW)]]*ListingEQ[[#This Row],[Cosφ]]","v":28},{"$f":"ListingEQ[[#This Row],[P tot (kW)]]*ListingEQ[[#This Row],[Fu*Fs]]","v":28},0,null,null,null,0]
["LOCAUX TECHNIQUES","Local MDI","R+2",null,"ELEC BATIMENT","Eclairage 1000lm",14,1,1,1,{"$f":"ListingEQ[[#This Row],[Fu]]*ListingEQ[[#This Row],[Fs]]","v":1},1,{"$f":"ListingEQ[[#This Row],[Nb]]*ListingEQ[[#This Row],[Pu (kW)]]*ListingEQ[[#This Row],[Cosφ]]","v":14},{"$f":"ListingEQ[[#This Row],[P tot (kW)]]*ListingEQ[[#This Row],[Fu*Fs]]","v":14},0,null,null,null,0]
["LOCAUX TECHNIQUES","Local groupe EL","R+3",null,"ELEC BATIMENT","Blocs secours",6,3,1,1,{"$f":"ListingEQ[[#This Row],[Fu]]*ListingEQ[[#This Row],[Fs]]","v":1},1,{"$f":"G20*ListingEQ[[#This Row],[Pu (kW)]]*ListingEQ[[#This Row],[Cosφ]]","v":18},{"$f":"ListingEQ[[#This Row],[P tot (kW)]]*ListingEQ[[#This Row],[Fu*Fs]]","v":18},0,2,null,null,0]
["LOCAUX TECHNIQUES","Local filtre","R+4",null,"ELEC BATIMENT","Blocs secours",6,0,1,1,{"$f":"ListingEQ[[#This Row],[Fu]]*ListingEQ[[#This Row],[Fs]]","v":1},1,{"$f":"G21*ListingEQ[[#This Row],[Pu (kW)]]*ListingEQ[[#This Row],[Cosφ]]","v":0},{"$f":"ListingEQ[[#This Row],[P tot (kW)]]*ListingEQ[[#This Row],[Fu*Fs]]","v":0},0,null,null,null,0]
["LOCAUX TECHNIQUES","Local compresseur","R+5",null,"ELEC BATIMENT","Blocs secours",6,0,1,1,{"$f":"ListingEQ[[#This Row],[Fu]]*ListingEQ[[#This Row],[Fs]]","v":1},1,{"$f":"G22*ListingEQ[[#This Row],[Pu (kW)]]*ListingEQ[[#This Row],[Cosφ]]","v":0},{"$f":"ListingEQ[[#This Row],[P tot (kW)]]*ListingEQ[[#This Row],[Fu*Fs]]","v":0},0,null,3,null,0]
["LIGNE","ZONE DEFI","R+6",null,"ELEC BATIMENT","Blocs secours",9,0,1,1,{"$f":"ListingEQ[[#This Row],[Fu]]*ListingEQ[[#This Row],[Fs]]","v":1},1,{"$f":"G23*ListingEQ[[#This Row],[Pu (kW)]]*ListingEQ[[#This Row],[Cosφ]]","v":0},{"$f":"ListingEQ[[#This Row],[P tot (kW)]]*ListingEQ[[#This Row],[Fu*Fs]]","v":0},0,null,null,3,0]
["LOCAUX TECHNIQUES","Local Transfos Presse ","R+7",null,"ELEC BATIMENT","Alimentation 48Vcc",1,0,1,1,{"$f":"ListingEQ[[#This Row],[Fu]]*ListingEQ[[#This Row],[Fs]]","v":1},1,{"$f":"G24*ListingEQ[[#This Row],[Pu (kW)]]*ListingEQ[[#This Row],[Cosφ]]","v":0},{"$f":"ListingEQ[[#This Row],[P tot (kW)]]*ListingEQ[[#This Row],[Fu*Fs]]","v":0},0,null,null,null,0]
["LOCAUX TECHNIQUES","Local Transfo utilité ","R+8",null,"ELEC BATIMENT","Boitier d'arret d'urgence \"coupure générale\"",1,0,1,1,{"$f":"ListingEQ[[#This Row],[Fu]]*ListingEQ[[#This Row],[Fs]]","v":1},1,{"$f":"G25*ListingEQ[[#This Row],[Pu (kW)]]*ListingEQ[[#This Row],[Cosφ]]","v":0},{"$f":"ListingEQ[[#This Row],[P tot (kW)]]*ListingEQ[[#This Row],[Fu*Fs]]","v":0},0,null,null,null,0]
["LOCAUX TECHNIQUES","Local Transfo utilité ","RDC",null,"ELEC BATIMENT","Cassette 600x600",1,0,1,1,{"$f":"ListingEQ[[#This Row],[Fu]]*ListingEQ[[#This Row],[Fs]]","v":1},1,{"$f":"G26*ListingEQ[[#This Row],[Pu (kW)]]*ListingEQ[[#This Row],[Cosφ]]","v":0},{"$f":"ListingEQ[[#This Row],[P tot (kW)]]*ListingEQ[[#This Row],[Fu*Fs]]","v":0},0,null,null,null,0]
["LOCAUX TECHNIQUES","Local Transfo utilité ","RDC",null,"ELEC BATIMENT","Transfo",1,0,1,1,{"$f":"ListingEQ[[#This Row],[Fu]]*ListingEQ[[#This Row],[Fs]]","v":1},1,{"$f":"G27*ListingEQ[[#This Row],[Pu (kW)]]*ListingEQ[[#This Row],[Cosφ]]","v":0},{"$f":"ListingEQ[[#This Row],[P tot (kW)]]*ListingEQ[[#This Row],[Fu*Fs]]","v":0},0,null,null,null,0]
["LOCAL CARISTES","LOCAL CARISTES","RDC",null,"ELEC BATIMENT","bornes",13,22,0.4,1,{"$f":"ListingEQ[[#This Row],[Fu]]*ListingEQ[[#This Row],[Fs]]","v":0.4},1,{"$f":"G28*ListingEQ[[#This Row],[Pu (kW)]]*ListingEQ[[#This Row],[Cosφ]]","v":286},{"$f":"ListingEQ[[#This Row],[P tot (kW)]]*ListingEQ[[#This Row],[Fu*Fs]]","v":114.4},0,5,7,null,0]
["EXTERIEUR","Equipements externes","EXTERIEUR",null,"ELEC BATIMENT","Bornes de recharges",13,22,1,1,{"$f":"ListingEQ[[#This Row],[Fu]]*ListingEQ[[#This Row],[Fs]]","v":1},1,{"$f":"G29*ListingEQ[[#This Row],[Pu (kW)]]*ListingEQ[[#This Row],[Cosφ]]","v":286},{"$f":"ListingEQ[[#This Row],[P tot (kW)]]*ListingEQ[[#This Row],[Fu*Fs]]","v":286},"TD ",null,null,null,0]
["EXTERIEUR","Voiries","EXTERIEUR",25,"ECLAIRAGE","Bornes piétonnes",9,0.08,1,1,{"$f":"ListingEQ[[#This Row],[Fu]]*ListingEQ[[#This Row],[Fs]]","v":1},1,{"$f":"G30*ListingEQ[[#This Row],[Pu (kW)]]*ListingEQ[[#This Row],[Cosφ]]","v":0.72},{"$f":"ListingEQ[[#This Row],[P tot (kW)]]*ListingEQ[[#This Row],[Fu*Fs]]","v":0.72},"TD SG",null,null,null,0]

{"sheet":"ECLAIRAGE INTRUSION RJ45","index":1,"n_rows":21,"n_cols":23,"rows_kept":21,"cut":false,"hidden":false,"merged":[[0,0,0,1],[0,2,0,5]]}
[]
["SECTEUR","LOCALISATION","A = Automatique","BP = Bouton Poussoir","H = Horloge + Lumandar","I = Interrupteur","BS = BAES","BA = BAEA","LP = Lampe portative","DM = Déclenchement manuel","DF= Détecteur de fumée","DLO = Détecteur linéaire optique ","DS= Diffuseur Sonore","AS = Asservissement CMSI","DG = Détection gaz","DAD = Détecteur autonome déclencheur","DV = Détceteur volumétrique","DM = Détecteur magnétique ","DS = Diffusion sonore","CL= Clavier de commande","INFO","TEL","TEL ROUGE"]
["LOCAL SPK","Local Sprinklage"]
["LOCAUX TECHNIQUES","SR04 "]
["EXTERIEUR","Equipements externes"]
["STOCKAGE","STOCKAGE"]
["STOCKAGE","CANTON "]
["LOCAUX TECHNIQUES","Local Transfo"]
["BUREAUX PRODUCTION","Poste d'eau presse"]
["BUREAUX PRODUCTION","Local eau chaude"]
["BUREAUX PRODUCTION","Local additifs"]
["BUREAUX PRODUCTION","Déchiqueteuse"]
["LOCAUX TECHNIQUES","Local MDI"]
["LOCAUX TECHNIQUES","Local groupe EL"]
["LOCAUX TECHNIQUES","Local filtre"]
["LOCAUX TECHNIQUES","Local compresseur"]
["LIGNE","ZONE DEFI"]
["LOCAUX TECHNIQUES","Local Transfos Presse "]
["LOCAUX TECHNIQUES","Local Transfo utilité "]
["LOCAL CARISTES","LOCAL CARISTES"]
["EXTERIEUR","Voiries"]